[Event "Titled Tuesday Blitz May 30 Early 2023"]
[White "Devaev, Alexander"]
[Black "Ibadov, Dashgyn"]
[WhiteFideId "4169395"]
[BlackFideId "24107514"]
[WhiteElo "2172"]
[BlackElo "2208"]
[Result "0-1"]
[Round "11"]
[TimeControl "180+2"]
[Date "2023.05.30"]
[WhiteClock "0:00:00"]
[BlackClock "0:00:05"]

1. Nf3 {[%clk 0:03:00]}  d5 {[%clk 0:02:59]} 2. c4 {[%clk 0:02:59]}  d4 {[%clk 0:03:00]} 3. d3 {[%clk 0:02:59]}  c5 {[%clk 0:02:58]} 4. e3 {[%clk 0:02:59]}  Nc6 {[%clk 0:02:58]} 5. Be2 {[%clk 0:02:59]}  Nf6 {[%clk 0:02:58]} 6. e4 {[%clk 0:02:59]}  e5 {[%clk 0:02:54]} 7. a3 {[%clk 0:03:00]}  Be6 {[%clk 0:02:44]} 8. Nbd2 {[%clk 0:02:58]}  Nd7 {[%clk 0:02:37]} 9. h3 {[%clk 0:02:53]}  Bd6 {[%clk 0:02:31]} 10. Nh2 {[%clk 0:02:51]}  g6 {[%clk 0:02:11]} 11. Bg4 {[%clk 0:02:46]}  Qe7 {[%clk 0:02:09]} 12. Bxe6 {[%clk 0:02:45]}  Qxe6 {[%clk 0:02:10]} 13. O-O {[%clk 0:02:34]}  O-O-O {[%clk 0:02:07]} 14. b4 {[%clk 0:02:29]}  f5 {[%clk 0:01:58]} 15. Rb1 {[%clk 0:02:22]}  Nf6 {[%clk 0:01:38]} 16. bxc5 {[%clk 0:02:17]}  Bxc5 {[%clk 0:01:37]} 17. Rb5 {[%clk 0:02:18]}  Bd6 {[%clk 0:01:25]} 18. Nhf3 {[%clk 0:02:18]}  h6 {[%clk 0:01:09]} 19. Re1 {[%clk 0:02:17]}  f4 {[%clk 0:01:06]} 20. Qb3 {[%clk 0:02:18]}  Rh7 {[%clk 0:01:02]} 21. c5 {[%clk 0:01:58]}  Qxb3 {[%clk 0:01:01]} 22. Nxb3 {[%clk 0:01:58]}  Bc7 {[%clk 0:01:02]} 23. Nbd2 {[%clk 0:01:59]}  g5 {[%clk 0:00:58]} 24. Nc4 {[%clk 0:01:56]}  Rg7 {[%clk 0:00:55]} 25. Nh2 {[%clk 0:01:52]}  h5 {[%clk 0:00:53]} 26. g3 {[%clk 0:01:34]}  g4 {[%clk 0:00:44]} 27. h4 {[%clk 0:01:31]}  Nd7 {[%clk 0:00:26]} 28. Nd6+ {[%clk 0:01:21]}  Bxd6 {[%clk 0:00:24]} 29. cxd6 {[%clk 0:01:22]}  a6 {[%clk 0:00:21]} 30. Rb1 {[%clk 0:01:17]}  Nc5 {[%clk 0:00:20]} 31. Rd1 {[%clk 0:01:14]}  fxg3 {[%clk 0:00:16]} 32. fxg3 {[%clk 0:01:14]}  Rxd6 {[%clk 0:00:17]} 33. Nf1 {[%clk 0:01:08]}  Rf7 {[%clk 0:00:17]} 34. Nh2 {[%clk 0:01:01]}  Rdf6 {[%clk 0:00:16]} 35. Bg5 {[%clk 0:01:00]}  Rf2 {[%clk 0:00:16]} 36. Rbc1 {[%clk 0:00:59]}  Ne6 {[%clk 0:00:14]} 37. a4 {[%clk 0:00:50]}  Kd7 {[%clk 0:00:13]} 38. Rb1 {[%clk 0:00:49]}  Ra2 {[%clk 0:00:12]} 39. Rxb7+ {[%clk 0:00:49]}  Nc7 {[%clk 0:00:12]} 40. Rf1 {[%clk 0:00:41]}  Rxf1+ {[%clk 0:00:10]} 41. Nxf1 {[%clk 0:00:41]}  Rxa4 {[%clk 0:00:10]} 42. Nd2 {[%clk 0:00:42]}  Rb4 {[%clk 0:00:09]} 43. Rxb4 {[%clk 0:00:40]}  Nxb4 {[%clk 0:00:10]} 44. Nc4 {[%clk 0:00:40]}  Nxd3 {[%clk 0:00:10]} 45. Kf1 {[%clk 0:00:40]}  Ke6 {[%clk 0:00:09]} 46. Ke2 {[%clk 0:00:37]}  Nc5 {[%clk 0:00:09]} 47. Nd2 {[%clk 0:00:38]}  Nb5 {[%clk 0:00:09]} 48. Bd8 {[%clk 0:00:37]}  Nc3+ {[%clk 0:00:09]} 49. Ke1 {[%clk 0:00:35]}  N3xe4 {[%clk 0:00:09]} 50. Nc4 {[%clk 0:00:35]}  Nxg3 {[%clk 0:00:09]} 51. Bb6 {[%clk 0:00:36]}  Nd3+ {[%clk 0:00:08]} 52. Kd2 {[%clk 0:00:34]}  Nf4 {[%clk 0:00:08]} 53. Bc7 {[%clk 0:00:34]}  Ne4+ {[%clk 0:00:07]} 54. Ke1 {[%clk 0:00:34]}  Ng6 {[%clk 0:00:06]} 55. Bb8 {[%clk 0:00:31]}  Kd5 {[%clk 0:00:03]} 56. Nb6+ {[%clk 0:00:29]}  Kc6 {[%clk 0:00:04]} 57. Nc4 {[%clk 0:00:29]}  Kd5 {[%clk 0:00:04]} 58. Nb6+ {[%clk 0:00:29]}  Kc5 {[%clk 0:00:04]} 59. Nd7+ {[%clk 0:00:29]}  Kc4 {[%clk 0:00:04]} 60. Ba7 {[%clk 0:00:22]}  Nxh4 {[%clk 0:00:03]} 61. Nxe5+ {[%clk 0:00:20]}  Kd5 {[%clk 0:00:03]} 62. Nf7 {[%clk 0:00:18]}  Nf3+ {[%clk 0:00:04]} 63. Ke2 {[%clk 0:00:18]}  h4 {[%clk 0:00:04]} 64. Nh6 {[%clk 0:00:15]}  Ne5 {[%clk 0:00:04]} 65. Nf5 {[%clk 0:00:15]}  h3 {[%clk 0:00:04]} 66. Kf1 {[%clk 0:00:09]}  g3 {[%clk 0:00:03]} 67. Kg1 {[%clk 0:00:05]}  Nf3+ {[%clk 0:00:02]} 68. Kf1 {[%clk 0:00:05]}  g2+ {[%clk 0:00:03]} 69. Ke2 {[%clk 0:00:06]}  g1=Q {[%clk 0:00:04]} 70. Ne7+ {[%clk 0:00:07]}  Ke6 {[%clk 0:00:04]} 71. Kd3 {[%clk 0:00:07]}  Qe3+ {[%clk 0:00:04]} 72. Kc4 {[%clk 0:00:08]}  Kxe7 {[%clk 0:00:04]} 73. Kd5 {[%clk 0:00:09]}  Nc3+ {[%clk 0:00:02]} 74. Kc6 {[%clk 0:00:08]}  Qe4+ {[%clk 0:00:03]} 75. Kc7 {[%clk 0:00:08]}  Nb5+ {[%clk 0:00:03]} 76. Kb8 {[%clk 0:00:08]}  Qe5+ {[%clk 0:00:03]} 77. Ka8 {[%clk 0:00:09]}  Qd5+ {[%clk 0:00:03]} 78. Kb8 {[%clk 0:00:09]}  Qd8+ {[%clk 0:00:03]} 79. Kb7 {[%clk 0:00:09]}  Qc7+ {[%clk 0:00:04]} 80. Kxa6 {[%clk 0:00:09]}  Qxa7+ {[%clk 0:00:05]} 81. Kxb5 {[%clk 0:00:00]}  Qc7 {[%clk 0:00:05]} 0-1


[Site "https://www.chess.com"]

[Event "Titled Tuesday Blitz May 30 Early 2023"]
[White "Garakov, Mikhael"]
[Black "Kleiman, Jake"]
[WhiteFideId "4169034"]
[BlackFideId "2020041"]
[WhiteElo "2347"]
[BlackElo "2607"]
[Result "1/2-1/2"]
[Round "11"]
[TimeControl "180+2"]
[Date "2023.05.30"]
[WhiteClock "0:00:17"]
[BlackClock "0:00:15"]

1. e4 {[%clk 0:03:00]}  e5 {[%clk 0:02:57]} 2. Nf3 {[%clk 0:03:01]}  Nc6 {[%clk 0:02:57]} 3. Bb5 {[%clk 0:03:01]}  a6 {[%clk 0:02:57]} 4. Bxc6 {[%clk 0:03:01]}  dxc6 {[%clk 0:02:57]} 5. O-O {[%clk 0:03:01]}  f6 {[%clk 0:02:58]} 6. d4 {[%clk 0:03:01]}  Bg4 {[%clk 0:02:58]} 7. dxe5 {[%clk 0:03:00]}  Qxd1 {[%clk 0:02:59]} 8. Rxd1 {[%clk 0:03:01]}  Bxf3 {[%clk 0:03:00]} 9. gxf3 {[%clk 0:02:59]}  fxe5 {[%clk 0:03:01]} 10. f4 {[%clk 0:02:53]}  Nf6 {[%clk 0:03:01]} 11. Nc3 {[%clk 0:02:24]}  Bc5 {[%clk 0:02:08]} 12. Kg2 {[%clk 0:02:23]}  Bd6 {[%clk 0:01:28]} 13. fxe5 {[%clk 0:02:09]}  Bxe5 {[%clk 0:01:29]} 14. f4 {[%clk 0:02:07]}  Bxc3 {[%clk 0:01:29]} 15. bxc3 {[%clk 0:02:08]}  O-O {[%clk 0:01:20]} 16. e5 {[%clk 0:01:49]}  Nd5 {[%clk 0:01:20]} 17. Kg3 {[%clk 0:01:50]}  Nxc3 {[%clk 0:01:16]} 18. Rd7 {[%clk 0:01:50]}  Rf7 {[%clk 0:01:11]} 19. Rxf7 {[%clk 0:01:26]}  Kxf7 {[%clk 0:01:11]} 20. Bb2 {[%clk 0:01:16]}  Na4 {[%clk 0:01:06]} 21. Bd4 {[%clk 0:01:12]}  Ke6 {[%clk 0:01:04]} 22. Kf3 {[%clk 0:01:07]}  c5 {[%clk 0:00:59]} 23. Be3 {[%clk 0:01:05]}  b6 {[%clk 0:00:59]} 24. h4 {[%clk 0:00:50]}  g6 {[%clk 0:00:55]} 25. h5 {[%clk 0:00:48]}  Rg8 {[%clk 0:00:46]} 26. hxg6 {[%clk 0:00:44]}  hxg6 {[%clk 0:00:46]} 27. Rh1 {[%clk 0:00:43]}  Rg7 {[%clk 0:00:37]} 28. Rh8 {[%clk 0:00:41]}  Nc3 {[%clk 0:00:36]} 29. Bd2 {[%clk 0:00:32]}  Nb5 {[%clk 0:00:32]} 30. Ke4 {[%clk 0:00:22]}  Nd4 {[%clk 0:00:31]} 31. c3 {[%clk 0:00:22]}  Nf5 {[%clk 0:00:30]} 32. Rf8 {[%clk 0:00:20]}  Ne7 {[%clk 0:00:26]} 33. Rf6+ {[%clk 0:00:20]}  Kd7 {[%clk 0:00:26]} 34. c4 {[%clk 0:00:18]}  a5 {[%clk 0:00:26]} 35. e6+ {[%clk 0:00:17]}  Ke8 {[%clk 0:00:24]} 36. Bc3 {[%clk 0:00:15]}  Rh7 {[%clk 0:00:24]} 37. Be5 {[%clk 0:00:15]}  c6 {[%clk 0:00:20]} 38. Bd6 {[%clk 0:00:15]}  Rg7 {[%clk 0:00:16]} 39. Kf3 {[%clk 0:00:14]}  a4 {[%clk 0:00:15]} 40. a3 {[%clk 0:00:14]}  Rg8 {[%clk 0:00:13]} 41. Ke4 {[%clk 0:00:14]}  Rg7 {[%clk 0:00:13]} 42. Be5 {[%clk 0:00:13]}  Rh7 {[%clk 0:00:13]} 43. Bd6 {[%clk 0:00:14]}  Rh8 {[%clk 0:00:12]} 44. Rf7 {[%clk 0:00:13]}  Nf5 {[%clk 0:00:11]} 45. Be5 {[%clk 0:00:12]}  Rh1 {[%clk 0:00:11]} 46. Rb7 {[%clk 0:00:12]}  Re1+ {[%clk 0:00:10]} 47. Kf3 {[%clk 0:00:12]}  Nd4+ {[%clk 0:00:09]} 48. Kg4 {[%clk 0:00:11]}  Nxe6 {[%clk 0:00:09]} 49. Rxb6 {[%clk 0:00:11]}  Re4 {[%clk 0:00:10]} 50. Rxc6 {[%clk 0:00:10]}  Ke7 {[%clk 0:00:09]} 51. Ra6 {[%clk 0:00:09]}  Rxc4 {[%clk 0:00:09]} 52. Ra7+ {[%clk 0:00:10]}  Kd8 {[%clk 0:00:10]} 53. Ra6 {[%clk 0:00:10]}  Kd7 {[%clk 0:00:10]} 54. Ra7+ {[%clk 0:00:11]}  Ke8 {[%clk 0:00:09]} 55. Ra6 {[%clk 0:00:11]}  Nf8 {[%clk 0:00:09]} 56. Kg5 {[%clk 0:00:11]}  Nd7 {[%clk 0:00:08]} 57. Kxg6 {[%clk 0:00:10]}  Ke7 {[%clk 0:00:06]} 58. Kf5 {[%clk 0:00:10]}  Rc1 {[%clk 0:00:06]} 59. Re6+ {[%clk 0:00:10]}  Kf7 {[%clk 0:00:06]} 60. Ra6 {[%clk 0:00:11]}  Ke7 {[%clk 0:00:07]} 61. Rxa4 {[%clk 0:00:11]}  c4 {[%clk 0:00:07]} 62. Ra7 {[%clk 0:00:10]}  Kd8 {[%clk 0:00:07]} 63. Ke6 {[%clk 0:00:10]}  Nc5+ {[%clk 0:00:07]} 64. Kd5 {[%clk 0:00:10]}  Nd3 {[%clk 0:00:07]} 65. Kd4 {[%clk 0:00:08]}  Nxe5 {[%clk 0:00:07]} 66. fxe5 {[%clk 0:00:09]}  c3 {[%clk 0:00:07]} 67. Kd3 {[%clk 0:00:09]}  c2 {[%clk 0:00:08]} 68. Kd2 {[%clk 0:00:09]}  Re1 {[%clk 0:00:07]} 69. Kxc2 {[%clk 0:00:09]}  Rxe5 {[%clk 0:00:08]} 70. Kc3 {[%clk 0:00:10]}  Kc8 {[%clk 0:00:09]} 71. Rf7 {[%clk 0:00:10]}  Kb8 {[%clk 0:00:09]} 72. Kb4 {[%clk 0:00:10]}  Rh5 {[%clk 0:00:09]} 73. a4 {[%clk 0:00:11]}  Rh4+ {[%clk 0:00:09]} 74. Kb5 {[%clk 0:00:11]}  Rh6 {[%clk 0:00:10]} 75. Rd7 {[%clk 0:00:10]}  Rg6 {[%clk 0:00:10]} 76. Rd5 {[%clk 0:00:11]}  Rf6 {[%clk 0:00:10]} 77. Rc5 {[%clk 0:00:12]}  Re6 {[%clk 0:00:11]} 78. Rc6 {[%clk 0:00:12]}  Rxc6 {[%clk 0:00:11]} 79. Kxc6 {[%clk 0:00:13]}  Ka7 {[%clk 0:00:12]} 80. Kb5 {[%clk 0:00:14]}  Kb7 {[%clk 0:00:12]} 81. a5 {[%clk 0:00:14]}  Ka7 {[%clk 0:00:13]} 82. a6 {[%clk 0:00:15]}  Ka8 {[%clk 0:00:13]} 83. Kb6 {[%clk 0:00:16]}  Kb8 {[%clk 0:00:14]} 84. a7+ {[%clk 0:00:17]}  Ka8 {[%clk 0:00:15]} 85. Ka6 {[%clk 0:00:17]} 1/2-1/2


[Site "https://www.chess.com"]

[Event "Titled Tuesday Blitz May 30 Early 2023"]
[White "Pinheiro, Iung Alicio de O."]
[Black "Trifan, Andrei Ioan"]
[WhiteFideId "2104350"]
[BlackFideId "12967068"]
[WhiteElo "2283"]
[BlackElo "2208"]
[Result "0-1"]
[Round "11"]
[TimeControl "180+2"]
[Date "2023.05.30"]
[WhiteClock "0:00:00"]
[BlackClock "0:00:14"]

1. d4 {[%clk 0:03:00]}  b6 {[%clk 0:02:58]} 2. e4 {[%clk 0:02:58]}  Bb7 {[%clk 0:02:59]} 3. Bd3 {[%clk 0:02:58]}  e6 {[%clk 0:02:59]} 4. Qe2 {[%clk 0:02:51]}  Nf6 {[%clk 0:02:57]} 5. Nf3 {[%clk 0:02:50]}  c5 {[%clk 0:02:55]} 6. d5 {[%clk 0:02:50]}  exd5 {[%clk 0:02:53]} 7. exd5+ {[%clk 0:02:49]}  Qe7 {[%clk 0:02:54]} 8. c4 {[%clk 0:02:42]}  Qxe2+ {[%clk 0:02:51]} 9. Kxe2 {[%clk 0:02:42]}  b5 {[%clk 0:02:35]} 10. b3 {[%clk 0:02:20]}  Bd6 {[%clk 0:02:32]} 11. Re1 {[%clk 0:02:17]}  O-O {[%clk 0:02:31]} 12. Nc3 {[%clk 0:02:08]}  bxc4 {[%clk 0:02:24]} 13. bxc4 {[%clk 0:02:06]}  Na6 {[%clk 0:02:24]} 14. a3 {[%clk 0:02:05]}  Rfe8+ {[%clk 0:02:17]} 15. Kf1 {[%clk 0:02:04]}  Ng4 {[%clk 0:02:17]} 16. Nb5 {[%clk 0:01:53]}  Rxe1+ {[%clk 0:01:56]} 17. Kxe1 {[%clk 0:01:49]}  Re8+ {[%clk 0:01:52]} 18. Kf1 {[%clk 0:01:49]}  Bb8 {[%clk 0:01:49]} 19. Bb2 {[%clk 0:01:44]}  f6 {[%clk 0:01:29]} 20. Bf5 {[%clk 0:01:37]}  Ne5 {[%clk 0:01:15]} 21. Re1 {[%clk 0:01:17]}  d6 {[%clk 0:01:01]} 22. Nd2 {[%clk 0:01:03]}  Rd8 {[%clk 0:00:51]} 23. f4 {[%clk 0:01:01]}  Ng6 {[%clk 0:00:33]} 24. g3 {[%clk 0:00:46]}  Kf8 {[%clk 0:00:30]} 25. h4 {[%clk 0:00:41]}  Nc7 {[%clk 0:00:29]} 26. Nc3 {[%clk 0:00:30]}  Kf7 {[%clk 0:00:27]} 27. h5 {[%clk 0:00:29]}  Nf8 {[%clk 0:00:27]} 28. g4 {[%clk 0:00:25]}  g6 {[%clk 0:00:26]} 29. hxg6+ {[%clk 0:00:24]}  hxg6 {[%clk 0:00:27]} 30. Bd3 {[%clk 0:00:24]}  Bc8 {[%clk 0:00:27]} 31. f5 {[%clk 0:00:23]}  Ne8 {[%clk 0:00:24]} 32. Kf2 {[%clk 0:00:22]}  Ng7 {[%clk 0:00:24]} 33. fxg6+ {[%clk 0:00:20]}  Nxg6 {[%clk 0:00:25]} 34. Kg3 {[%clk 0:00:19]}  Ne5 {[%clk 0:00:24]} 35. Be2 {[%clk 0:00:19]}  Bc7 {[%clk 0:00:23]} 36. Nce4 {[%clk 0:00:19]}  f5 {[%clk 0:00:21]} 37. Rf1 {[%clk 0:00:19]}  Kg6 {[%clk 0:00:21]} 38. Nf2 {[%clk 0:00:14]}  fxg4 {[%clk 0:00:20]} 39. Bxg4 {[%clk 0:00:14]}  Nf5+ {[%clk 0:00:20]} 40. Bxf5+ {[%clk 0:00:14]}  Bxf5 {[%clk 0:00:21]} 41. Nfe4 {[%clk 0:00:13]}  Rb8 {[%clk 0:00:20]} 42. Bxe5 {[%clk 0:00:13]}  dxe5 {[%clk 0:00:21]} 43. d6 {[%clk 0:00:14]}  Bb6 {[%clk 0:00:20]} 44. Kf3 {[%clk 0:00:10]}  Ba5 {[%clk 0:00:20]} 45. Rg1+ {[%clk 0:00:11]}  Kf7 {[%clk 0:00:21]} 46. Rg5 {[%clk 0:00:10]}  Ke6 {[%clk 0:00:20]} 47. d7 {[%clk 0:00:08]}  Bxd2 {[%clk 0:00:20]} 48. Nxd2 {[%clk 0:00:08]}  Kf6 {[%clk 0:00:20]} 49. Rh5 {[%clk 0:00:07]}  Bxd7 {[%clk 0:00:20]} 50. Ne4+ {[%clk 0:00:06]}  Kg6 {[%clk 0:00:21]} 51. Rxe5 {[%clk 0:00:06]}  Rb3+ {[%clk 0:00:21]} 52. Kf4 {[%clk 0:00:06]}  Rxa3 {[%clk 0:00:22]} 53. Rxc5 {[%clk 0:00:07]}  Ra4 {[%clk 0:00:20]} 54. Rd5 {[%clk 0:00:07]}  Be6 {[%clk 0:00:19]} 55. Rd6 {[%clk 0:00:07]}  Rxc4 {[%clk 0:00:17]} 56. Rxe6+ {[%clk 0:00:07]}  Kf7 {[%clk 0:00:18]} 57. Ra6 {[%clk 0:00:04]}  Rc7 {[%clk 0:00:18]} 58. Ke5 {[%clk 0:00:05]}  Re7+ {[%clk 0:00:19]} 59. Kf5 {[%clk 0:00:05]}  Ke8 {[%clk 0:00:19]} 60. Nf6+ {[%clk 0:00:05]}  Kd8 {[%clk 0:00:19]} 61. Rd6+ {[%clk 0:00:05]}  Kc7 {[%clk 0:00:19]} 62. Ra6 {[%clk 0:00:03]}  Kb7 {[%clk 0:00:19]} 63. Ra1 {[%clk 0:00:04]}  a6 {[%clk 0:00:19]} 64. Rb1+ {[%clk 0:00:05]}  Kc6 {[%clk 0:00:19]} 65. Kg6 {[%clk 0:00:04]}  a5 {[%clk 0:00:19]} 66. Rc1+ {[%clk 0:00:05]}  Kb5 {[%clk 0:00:19]} 67. Kf5 {[%clk 0:00:05]}  a4 {[%clk 0:00:19]} 68. Nd5 {[%clk 0:00:05]}  Rh7 {[%clk 0:00:15]} 69. Ke5 {[%clk 0:00:05]}  a3 {[%clk 0:00:14]} 70. Rb1+ {[%clk 0:00:04]}  Ka4 {[%clk 0:00:14]} 71. Nb6+ {[%clk 0:00:03]}  Ka5 {[%clk 0:00:14]} 72. Nc4+ {[%clk 0:00:04]}  Ka4 {[%clk 0:00:15]} 73. Rb8 {[%clk 0:00:04]}  Ra7 {[%clk 0:00:14]} 74. Kd4 {[%clk 0:00:00]}  a2 {[%clk 0:00:14]} 0-1


[Site "https://www.chess.com"]

[Event "Titled Tuesday Blitz May 30 Early 2023"]
[White "Sanhueza, Cristian"]
[Black "Petrosyan, Manuel"]
[WhiteFideId "116815"]
[BlackFideId "13300857"]
[WhiteElo "2174"]
[BlackElo "2576"]
[Result "0-1"]
[Round "11"]
[TimeControl "180+2"]
[Date "2023.05.30"]
[WhiteClock "0:00:17"]
[BlackClock "0:00:46"]

1. e4 {[%clk 0:02:56]}  c5 {[%clk 0:02:57]} 2. Nf3 {[%clk 0:02:56]}  d6 {[%clk 0:02:57]} 3. d4 {[%clk 0:02:56]}  cxd4 {[%clk 0:02:58]} 4. Nxd4 {[%clk 0:02:57]}  Nf6 {[%clk 0:02:58]} 5. Nc3 {[%clk 0:02:58]}  a6 {[%clk 0:02:58]} 6. Be3 {[%clk 0:02:58]}  Ng4 {[%clk 0:02:56]} 7. Bc1 {[%clk 0:02:58]}  Nf6 {[%clk 0:02:55]} 8. Be3 {[%clk 0:02:58]}  e5 {[%clk 0:02:47]} 9. Nf3 {[%clk 0:02:58]}  h6 {[%clk 0:02:40]} 10. Bc4 {[%clk 0:02:57]}  Qc7 {[%clk 0:02:32]} 11. Bb3 {[%clk 0:02:55]}  Be6 {[%clk 0:02:31]} 12. O-O {[%clk 0:02:55]}  Be7 {[%clk 0:02:28]} 13. Qe2 {[%clk 0:02:55]}  O-O {[%clk 0:02:23]} 14. Rfd1 {[%clk 0:02:55]}  Nbd7 {[%clk 0:02:16]} 15. Nh4 {[%clk 0:02:50]}  Rfe8 {[%clk 0:02:12]} 16. Nf5 {[%clk 0:02:49]}  Bf8 {[%clk 0:02:09]} 17. Qf3 {[%clk 0:02:49]}  Kh7 {[%clk 0:01:54]} 18. Rac1 {[%clk 0:02:44]}  g6 {[%clk 0:01:50]} 19. g4 {[%clk 0:01:35]}  Bxb3 {[%clk 0:01:40]} 20. cxb3 {[%clk 0:01:33]}  gxf5 {[%clk 0:01:39]} 21. gxf5 {[%clk 0:01:27]}  Qd8 {[%clk 0:01:36]} 22. Kh1 {[%clk 0:01:25]}  Rc8 {[%clk 0:00:59]} 23. Rg1 {[%clk 0:01:21]}  b5 {[%clk 0:00:58]} 24. Rg3 {[%clk 0:01:13]}  b4 {[%clk 0:00:57]} 25. Ne2 {[%clk 0:00:44]}  Rxc1+ {[%clk 0:00:57]} 26. Bxc1 {[%clk 0:00:44]}  Nc5 {[%clk 0:00:55]} 27. Rh3 {[%clk 0:00:27]}  Ncxe4 {[%clk 0:00:53]} 28. Bxh6 {[%clk 0:00:24]}  Bxh6 {[%clk 0:00:52]} 29. Qe3 {[%clk 0:00:24]}  Ng4 {[%clk 0:00:50]} 30. Rxh6+ {[%clk 0:00:20]}  Nxh6 {[%clk 0:00:50]} 31. Qxe4 {[%clk 0:00:17]}  d5 {[%clk 0:00:46]} 0-1


[Site "https://www.chess.com"]

[Event "Titled Tuesday Blitz May 30 Early 2023"]
[White "Gheorghiu, Calin"]
[Black "Yuan, Qingyu"]
[WhiteFideId "1200305"]
[BlackFideId "8609772"]
[WhiteElo "2223"]
[BlackElo "2359"]
[Result "0-1"]
[Round "11"]
[TimeControl "180+2"]
[Date "2023.05.30"]
[WhiteClock "0:00:07"]
[BlackClock "0:00:08"]

1. e4 {[%clk 0:03:00]}  e5 {[%clk 0:03:00]} 2. Nf3 {[%clk 0:03:00]}  Nc6 {[%clk 0:03:00]} 3. Bb5 {[%clk 0:02:59]}  Nf6 {[%clk 0:03:00]} 4. d3 {[%clk 0:02:58]}  Bc5 {[%clk 0:02:59]} 5. c3 {[%clk 0:02:57]}  d5 {[%clk 0:02:59]} 6. Nxe5 {[%clk 0:02:37]}  O-O {[%clk 0:02:59]} 7. Nxc6 {[%clk 0:02:37]}  bxc6 {[%clk 0:02:54]} 8. Bxc6 {[%clk 0:02:37]}  Bxf2+ {[%clk 0:02:54]} 9. Kxf2 {[%clk 0:02:16]}  Ng4+ {[%clk 0:02:53]} 10. Kg1 {[%clk 0:01:40]}  Qf6 {[%clk 0:02:48]} 11. Qf3 {[%clk 0:01:39]}  Qxc6 {[%clk 0:02:44]} 12. exd5 {[%clk 0:01:39]}  Qb6+ {[%clk 0:02:31]} 13. d4 {[%clk 0:01:39]}  Re8 {[%clk 0:02:31]} 14. g3 {[%clk 0:00:56]}  Qg6 {[%clk 0:02:00]} 15. h3 {[%clk 0:00:37]}  Qc2 {[%clk 0:01:06]} 16. Nd2 {[%clk 0:00:32]}  Re3 {[%clk 0:01:02]} 17. Qf4 {[%clk 0:00:23]}  Qd1+ {[%clk 0:00:52]} 18. Nf1 {[%clk 0:00:22]}  Re2 {[%clk 0:00:17]} 19. hxg4 {[%clk 0:00:18]}  Ba6 {[%clk 0:00:12]} 20. Rh2 {[%clk 0:00:09]}  Rxh2 {[%clk 0:00:09]} 21. Kxh2 {[%clk 0:00:09]}  Bxf1 {[%clk 0:00:09]} 22. b3 {[%clk 0:00:07]}  Qe2+ {[%clk 0:00:08]} 0-1


[Site "https://www.chess.com"]

[Event "Titled Tuesday Blitz May 30 Early 2023"]
[White "Toncheva, Nadya"]
[Black "Sahib Singh"]
[WhiteFideId "2924056"]
[BlackFideId "25618342"]
[WhiteElo "2101"]
[BlackElo "1934"]
[Result "0-1"]
[Round "11"]
[TimeControl "180+2"]
[Date "2023.05.30"]
[WhiteClock "0:00:04"]
[BlackClock "0:00:06"]

1. d4 {[%clk 0:03:00]}  d5 {[%clk 0:02:58]} 2. c4 {[%clk 0:03:01]}  e6 {[%clk 0:02:58]} 3. Nc3 {[%clk 0:03:01]}  c6 {[%clk 0:02:59]} 4. e3 {[%clk 0:02:59]}  f5 {[%clk 0:02:59]} 5. Nf3 {[%clk 0:02:54]}  Bd6 {[%clk 0:02:58]} 6. Ne5 {[%clk 0:02:54]}  Nf6 {[%clk 0:02:53]} 7. Bd3 {[%clk 0:02:49]}  O-O {[%clk 0:02:47]} 8. O-O {[%clk 0:02:44]}  Nbd7 {[%clk 0:02:39]} 9. f4 {[%clk 0:02:44]}  Ne4 {[%clk 0:02:33]} 10. Nxe4 {[%clk 0:02:34]}  fxe4 {[%clk 0:02:31]} 11. Be2 {[%clk 0:02:35]}  Nxe5 {[%clk 0:01:56]} 12. fxe5 {[%clk 0:02:34]}  Be7 {[%clk 0:01:57]} 13. Bd2 {[%clk 0:02:26]}  b6 {[%clk 0:01:56]} 14. Qa4 {[%clk 0:02:13]}  Bd7 {[%clk 0:01:38]} 15. Rxf8+ {[%clk 0:02:11]}  Bxf8 {[%clk 0:01:38]} 16. Rf1 {[%clk 0:01:59]}  a6 {[%clk 0:01:28]} 17. Qd1 {[%clk 0:01:47]}  c5 {[%clk 0:01:11]} 18. cxd5 {[%clk 0:01:44]}  exd5 {[%clk 0:01:11]} 19. Bg4 {[%clk 0:01:42]}  Qe8 {[%clk 0:00:51]} 20. Bxd7 {[%clk 0:00:59]}  Qxd7 {[%clk 0:00:50]} 21. Qh5 {[%clk 0:00:57]}  g6 {[%clk 0:00:47]} 22. Qg5 {[%clk 0:00:54]}  Be7 {[%clk 0:00:41]} 23. Qg3 {[%clk 0:00:41]}  Rf8 {[%clk 0:00:39]} 24. Rxf8+ {[%clk 0:00:39]}  Bxf8 {[%clk 0:00:40]} 25. Qf2 {[%clk 0:00:28]}  Be7 {[%clk 0:00:26]} 26. h3 {[%clk 0:00:26]}  Qa4 {[%clk 0:00:14]} 27. Bc3 {[%clk 0:00:23]}  c4 {[%clk 0:00:12]} 28. a3 {[%clk 0:00:22]}  Qe8 {[%clk 0:00:11]} 29. Qf4 {[%clk 0:00:12]}  Qd7 {[%clk 0:00:08]} 30. Be1 {[%clk 0:00:12]}  Qe6 {[%clk 0:00:06]} 31. Bh4 {[%clk 0:00:12]}  Bf8 {[%clk 0:00:04]} 32. Kh2 {[%clk 0:00:12]}  b5 {[%clk 0:00:04]} 33. Bd8 {[%clk 0:00:11]}  Qf7 {[%clk 0:00:03]} 34. Qg4 {[%clk 0:00:09]}  Qf5 {[%clk 0:00:04]} 35. e6 {[%clk 0:00:08]}  Qxg4 {[%clk 0:00:03]} 36. hxg4 {[%clk 0:00:08]}  Bd6+ {[%clk 0:00:03]} 37. Kh3 {[%clk 0:00:06]}  Kf8 {[%clk 0:00:04]} 38. Kh4 {[%clk 0:00:06]}  Be7+ {[%clk 0:00:04]} 39. Bxe7+ {[%clk 0:00:05]}  Kxe7 {[%clk 0:00:04]} 40. Kg5 {[%clk 0:00:06]}  a5 {[%clk 0:00:05]} 41. Kh6 {[%clk 0:00:05]}  b4 {[%clk 0:00:05]} 42. Kxh7 {[%clk 0:00:04]}  bxa3 {[%clk 0:00:06]} 43. bxa3 {[%clk 0:00:04]}  c3 {[%clk 0:00:06]} 44. Kxg6 {[%clk 0:00:04]}  c2 {[%clk 0:00:06]} 0-1


[Site "https://www.chess.com"]

[Event "Titled Tuesday Blitz May 30 Early 2023"]
[White "Balla, Tamas-Kristof"]
[Black "Goryachkina, Aleksandra"]
[WhiteFideId "1208497"]
[BlackFideId "4147103"]
[WhiteElo "2334"]
[BlackElo "2471"]
[Result "0-1"]
[Round "11"]
[TimeControl "180+2"]
[Date "2023.05.30"]
[WhiteClock "0:01:23"]
[BlackClock "0:01:07"]

1. e4 {[%clk 0:03:00]}  c6 {[%clk 0:03:00]} 2. d4 {[%clk 0:02:59]}  d5 {[%clk 0:03:00]} 3. exd5 {[%clk 0:03:00]}  cxd5 {[%clk 0:03:00]} 4. c4 {[%clk 0:03:00]}  Nf6 {[%clk 0:02:59]} 5. Nc3 {[%clk 0:03:01]}  Nc6 {[%clk 0:02:59]} 6. Bg5 {[%clk 0:03:00]}  Be6 {[%clk 0:02:51]} 7. cxd5 {[%clk 0:02:52]}  Nxd5 {[%clk 0:02:49]} 8. Nf3 {[%clk 0:02:51]}  h6 {[%clk 0:02:44]} 9. Bh4 {[%clk 0:02:49]}  g6 {[%clk 0:02:40]} 10. Be2 {[%clk 0:02:47]}  Bg7 {[%clk 0:02:41]} 11. O-O {[%clk 0:02:47]}  O-O {[%clk 0:02:40]} 12. Bg3 {[%clk 0:02:41]}  Bg4 {[%clk 0:02:32]} 13. h3 {[%clk 0:02:25]}  Bxf3 {[%clk 0:02:30]} 14. Bxf3 {[%clk 0:02:26]}  Nb6 {[%clk 0:02:29]} 15. d5 {[%clk 0:02:18]}  Nd4 {[%clk 0:02:24]} 16. Re1 {[%clk 0:02:10]}  Qd7 {[%clk 0:02:15]} 17. Qd3 {[%clk 0:02:04]}  Nxf3+ {[%clk 0:02:10]} 18. Qxf3 {[%clk 0:02:02]}  Rad8 {[%clk 0:02:01]} 19. Rad1 {[%clk 0:02:01]}  Rfe8 {[%clk 0:01:57]} 20. d6 {[%clk 0:01:51]}  exd6 {[%clk 0:01:47]} 21. Rxe8+ {[%clk 0:01:49]}  Rxe8 {[%clk 0:01:42]} 22. Rxd6 {[%clk 0:01:45]}  Qe7 {[%clk 0:01:38]} 23. Rd1 {[%clk 0:01:42]}  h5 {[%clk 0:01:18]} 24. Bd6 {[%clk 0:01:39]}  Qd7 {[%clk 0:01:15]} 25. Bc5 {[%clk 0:01:36]}  Qc6 {[%clk 0:01:07]} 26. Qxc6 {[%clk 0:01:29]}  bxc6 {[%clk 0:01:08]} 27. Rd6 {[%clk 0:01:23]}  Re1+ {[%clk 0:01:07]} 0-1


[Site "https://www.chess.com"]